bitfinex/quotes_SOLUSD_20250718
["timestamp","ask_amount","ask_price","bid_price","bid_amount"]
[1752844128744,26.0,179.72,179.7,0.68]
[1752844129024,26.0,179.72,179.7,14.17140855]
[1752844130054,26.0,179.72,179.71,14.17140855]
[1752844130224,30.35,179.74,179.71,14.17140855]
[1752844130225,26.0,179.73,179.71,14.17140855]
[1752844130421,26.0,179.73,179.72,14.85140855]
[1752844130928,26.0,179.73,179.72,9.544726]
[1752844131125,26.0,179.73,179.72,14.42893699]
[1752844131834,26.0,179.73,179.7,0.68]
[1752844131835,26.0,179.73,179.71,14.42914096]
[1752844132441,26.0,179.73,179.71,5.56441496]
[1752844133147,26.0,179.73,179.71,14.42914096]
[1752844133351,26.0,179.73,179.71,5.56441496]
[1752844133729,26.0,179.73,179.69,5.56513996]
[1752844133930,26.0,179.73,179.69,6.25513996]
[1752844134350,26.0,179.73,179.69,5.56513996]
[1752844134351,0.68,179.72,179.69,5.56513996]
[1752844135052,26.0,179.73,179.69,6.25513996]
[1752844136254,26.68,179.73,179.69,6.25513996]
[1752844137955,26.68,179.73,179.69,5.56513996]
[1752844138135,26.68,179.73,179.7,8.864726]
[1752844138338,26.68,179.73,179.7,14.42952038]
[1752844138840,26.68,179.73,179.7,5.56479438]
[1752844139048,26.68,179.73,179.7,14.42952038]
[1752844140559,26.68,179.73,179.69,14.42974971]
[1752844140768,0.68,179.72,179.69,14.42974971]
[1752844141056,26.0,179.73,179.7,8.864726]
[1752844141353,26.0,179.73,179.69,5.56502371]
[1752844141354,0.68,179.72,179.69,5.56502371]
[1752844141552,0.68,179.72,179.69,14.42974971]
[1752844141852,26.0,179.73,179.69,15.11974971]
[1752844142160,26.68,179.73,179.69,6.25502371]
[1752844142465,26.68,179.73,179.7,14.42926491]
[1752844142638,26.68,179.73,179.69,6.2550461]
[1752844142963,0.68,179.72,179.69,14.4297721]
[1752844143339,26.0,179.73,179.69,14.4297721]
[1752844143340,26.0,179.73,179.7,8.864726]
[1752844143542,26.68,179.73,179.69,5.5650461]
[1752844143768,0.68,179.72,179.7,8.864726]
[1752844144662,0.68,179.72,179.7,14.4295235]
[1752844144862,0.68,179.72,179.69,5.56505437]
[1752844145165,0.68,179.72,179.69,14.42978037]
[1752844145543,26.0,179.73,179.69,14.42978037]
[1752844145755,26.0,179.73,179.7,8.864726]
[1752844146058,0.06,179.72,179.7,8.864726]
[1752844146262,0.74,179.72,179.69,14.45978037]
[1752844146442,0.74,179.72,179.69,5.59505437]
[1752844146966,0.74,179.72,179.69,8.894726]
[1752844147346,0.06,179.72,179.69,9.584726]
[1752844148151,0.74,179.72,179.69,8.894726]
[1752844148350,0.68,179.71,179.69,0.03]
[1752844148660,0.06,179.72,179.69,0.03]
[1752844148858,0.06,179.72,179.69,9.584726]
[1752844149657,0.06,179.72,179.69,15.14982418]
[1752844149836,0.74,179.72,179.69,5.59509818]
[1752844150037,0.06,179.72,179.69,5.59509818]
[1752844150236,0.06,179.72,179.69,15.14982418]
[1752844151966,0.06,179.72,179.7,0.69]
[1752844152266,0.06,179.72,179.71,8.864726]
[1752844152564,0.06,179.72,179.7,9.554726]
[1752844152741,0.06,179.72,179.69,14.45982418]
[1752844152938,0.06,179.72,179.69,15.14982418]
[1752844153144,0.06,179.72,179.71,5.56452061]
[1752844154663,0.06,179.72,179.71,6.25452061]
[1752844155073,0.06,179.72,179.71,5.56452061]
[1752844156267,0.06,179.72,179.71,6.25452061]
[1752844156764,0.06,179.72,179.71,15.11924661]
[1752844157251,0.06,179.72,179.71,14.42924661]
[1752844157563,0.06,179.72,179.71,5.56452061]
[1752844157768,0.06,179.72,179.71,14.42924661]
[1752844158345,0.06,179.75,179.74,26.0]
[1752844158546,0.06,179.75,179.74,35.554726]
[1752844159467,0.06,179.75,179.74,41.11831785]
[1752844162767,0.06,179.75,179.74,32.25359185]
[1752844162975,0.06,179.75,179.74,41.11831785]
[1752844164986,0.06,179.75,179.74,32.25359185]
[1752844165178,0.06,179.75,179.74,41.11831785]
[1752844166466,0.74,179.75,179.71,6.4999]
[1752844166782,9.604726,179.75,179.7,8.864726]
[1752844166963,0.68,179.74,179.68,32.0075]
[1752844167173,0.68,179.74,179.71,8.864726]
[1752844167367,0.68,179.74,179.69,0.73]
[1752844167368,0.06,179.75,179.72,0.7]
[1752844167564,0.06,179.75,179.7,5.56471689]
[1752844167767,0.74,179.75,179.72,8.864726]
[1752844168085,0.68,179.74,179.71,8.864726]
[1752844168677,0.68,179.74,179.72,5.56421099]
[1752844168875,0.06,179.75,179.72,14.42893699]
[1752844169082,0.06,179.75,179.74,8.864726]
[1752844170285,0.06,179.75,179.74,14.42831785]
[1752844170890,0.06,179.75,179.74,6.26359185]
[1752844171091,0.06,179.75,179.74,15.12831785]
[1752844171793,0.06,179.75,179.74,6.26359185]
[1752844171980,0.06,179.75,179.74,14.42831785]
[1752844172160,0.06,179.75,179.74,6.26359185]
[1752844172363,0.06,179.75,179.74,15.12831785]
[1752844172989,0.06,179.75,179.74,6.26359185]
[1752844173173,0.06,179.75,179.74,15.12831785]
[1752844174077,0.06,179.75,179.74,6.26359185]
[1752844174276,0.06,179.75,179.74,15.12831785]
[1752844175397,0.06,179.75,179.74,5.56359185]
[1752844175594,0.06,179.75,179.74,14.42831785]
[1752844175794,0.06,179.75,179.74,6.26359185]
[1752844176095,0.06,179.75,179.74,15.12831785]
[1752844177597,0.06,179.76,179.74,44.74831785]
[1752844177917,0.06,179.76,179.75,9.564726]
[1752844178671,0.06,179.76,179.75,15.12800833]
[1752844179088,0.06,179.76,179.75,5.56328233]
[1752844179698,0.74,179.76,179.75,5.56328233]
[1752844179896,0.74,179.76,179.72,14.42893699]
[1752844180109,0.68,179.75,179.72,5.56421099]
[1752844180272,0.68,179.75,179.72,14.42893699]
[1752844180718,0.68,179.75,179.72,5.56421099]
[1752844181000,0.68,179.75,179.72,14.42893699]
[1752844181784,0.06,179.76,179.72,14.42893699]
[1752844181785,0.06,179.76,179.72,5.56421099]
[1752844182123,0.68,179.74,179.72,5.56421099]
[1752844182485,0.68,179.74,179.72,14.42893699]
[1752844183079,0.68,179.74,179.72,5.56421099]
[1752844183302,0.68,179.74,179.72,14.42893699]
[1752844183881,0.74,179.76,179.72,5.56421099]
[1752844184108,0.74,179.76,179.73,8.864726]
[1752844184415,0.06,179.76,179.73,9.564726]
[1752844185017,0.06,179.76,179.74,5.56359185]
[1752844185211,0.06,179.76,179.74,14.42831785]
[1752844186888,0.06,179.76,179.74,5.56359185]
[1752844188092,0.06,179.76,179.74,14.42831785]
[1752844188484,0.06,179.76,179.74,5.56359185]
[1752844189107,0.06,179.76,179.74,14.42831785]
[1752844189309,0.06,179.76,179.75,9.564726]
[1752844190716,0.06,179.76,179.75,26.9057382]
[1752844191218,0.06,179.77,179.76,8.864726]
[1752844191420,0.06,179.77,179.76,38.484726]
[1752844191589,0.06,179.77,179.76,39.184726]
[1752844192813,0.06,179.77,179.76,30.32]
[1752844193119,0.06,179.77,179.76,39.184726]
[1752844193333,0.06,179.77,179.76,44.74769885]
[1752844196020,0.06,179.79,179.78,42.78468397]
[1752844196317,0.06,179.81,179.79,16.78468397]
[1752844196533,0.06,179.81,179.8,48.06562552]
[1752844196698,0.06,179.81,179.8,48.74562552]
[1752844197100,0.1,179.83,179.82,26.0]
[1752844197300,0.1,179.83,179.82,64.664726]
[1752844197601,0.1,179.83,179.82,88.2466383]
[1752844198527,0.1,179.83,179.82,79.3819123]
[1752844198697,0.1,179.83,179.82,71.46195433]
[1752844199516,1e-08,179.83,179.82,71.46195433]
[1752844199725,1e-08,179.83,179.82,88.2466383]
[1752844200022,0.06,179.87,179.83,16.78468397]
[1752844200191,1e-08,179.87,179.86,51.64940997]
[1752844200396,1e-08,179.87,179.86,82.04539796]
[1752844200616,1e-08,179.87,179.86,82.72539796]
[1752844201639,0.72,179.97,179.9,26.0]
[1752844201825,1e-08,179.91,179.9,56.02]
[1752844202119,1e-08,179.91,179.9,74.429452]
[1752844202338,1e-08,179.91,179.9,56.7]
[1752844202713,0.72000001,179.91,179.86,20.13957966]
[1752844202895,0.72,179.9,179.87,30.4]
[1752844203092,0.72,179.89,179.86,35.9598799]
[1752844203423,0.72,179.89,179.85,5.56018904]
[1752844203598,0.72,179.88,179.85,5.56018904]
[1752844203919,0.72,179.87,179.85,5.56018904]
[1752844204226,0.72,179.86,179.85,5.56018904]
[1752844204408,1e-08,179.91,179.85,5.56018904]
[1752844204409,0.72,179.89,179.85,5.56018904]
[1752844204610,0.72,179.88,179.85,14.42491504]
[1752844204811,0.72,179.88,179.85,5.56018904]
[1752844205018,0.72,179.87,179.85,5.56018904]
[1752844205711,0.72,179.86,179.81,30.72]
[1752844205899,0.72,179.85,179.81,30.72]
[1752844206221,5.55835609,179.91,179.8,8.864726]
[1752844206222,0.72,179.84,179.8,8.864726]
[1752844206424,0.72,179.84,179.81,8.864726]
[1752844206724,0.72,179.86,179.82,8.864726]
[1752844206926,0.72,179.85,179.82,8.864726]
[1752844207103,0.72,179.87,179.83,0.68]
[1752844207423,0.72,179.88,179.85,8.864726]
[1752844207594,0.72,179.88,179.86,5.5598799]
[1752844207794,1e-08,179.91,179.86,5.5598799]
[1752844208013,0.72,179.9,179.86,14.4246059]
[1752844208216,1e-08,179.91,179.89,8.864726]
[1752844208423,1e-08,179.91,179.9,8.864726]
[1752844208608,1e-08,179.91,179.88,0.68]
[1752844209006,1e-08,179.91,179.89,0.68]
[1752844209412,1e-08,179.91,179.9,0.68]
[1752844209726,1e-08,179.91,179.9,14.42336969]
[1752844209899,1e-08,179.91,179.9,15.10336969]
[1752844210302,1e-08,179.91,179.9,6.23864369]
[1752844210511,1e-08,179.91,179.9,14.42336969]
[1752844210714,1e-08,179.91,179.9,5.55864369]
[1752844211000,0.72000001,179.91,179.88,5.55921824]
[1752844211218,0.72,179.9,179.88,5.55921824]
[1752844211400,0.72,179.89,179.88,5.55921824]
[1752844211600,0.72,179.89,179.86,5.5598799]
[1752844211821,0.72,179.89,179.86,14.4246059]
[1752844212125,0.72000001,179.91,179.88,8.864726]
[1752844212419,0.72,179.9,179.86,5.5598799]
[1752844212626,0.72,179.9,179.88,8.864726]
[1752844212923,1e-08,179.91,179.88,8.864726]
[1752844213327,1e-08,179.91,179.86,6.2398799]
[1752844213640,0.72,179.9,179.88,14.42373424]
[1752844213826,0.72000001,179.91,179.88,14.42373424]
[1752844214004,1e-08,179.91,179.88,5.55900824]
[1752844214204,1e-08,179.91,179.89,8.864726]
[1752844214411,0.72000001,179.91,179.89,8.864726]
[1752844214617,0.72000001,179.91,179.88,5.55900824]
[1752844214814,0.72000001,179.91,179.89,8.864726]
[1752844215023,1e-08,179.91,179.89,8.864726]
[1752844215221,1e-08,179.91,179.9,8.864726]
[1752844215420,1e-08,179.91,179.9,14.42336969]
[1752844215939,1e-08,179.91,179.89,8.864726]
[1752844216102,1e-08,179.91,179.88,0.68]
[1752844216435,1e-08,179.91,179.9,34.864726]
[1752844216630,1e-08,179.91,179.9,26.0]
[1752844216936,1e-08,179.91,179.9,34.864726]
[1752844217307,1e-08,179.91,179.9,26.0]
[1752844217530,1e-08,179.91,179.9,41.10336969]
[1752844217726,1e-08,179.91,179.9,49.02332766]
[1752844217903,1e-08,179.91,179.9,57.20805366]
[1752844218101,1e-08,179.91,179.9,57.88805366]
[1752844218404,1e-08,179.91,179.9,49.02332766]
[1752844218602,1e-08,179.91,179.9,57.88805366]
[1752844218808,1e-08,179.91,179.9,32.23864369]
[1752844219027,1e-08,179.91,179.9,66.75277966]
[1752844219332,1e-08,179.94,179.93,26.0]
[1752844219536,1e-08,179.94,179.93,40.97821456]
[1752844219740,1e-08,179.94,179.93,49.57817253]
[1752844219924,1e-08,179.94,179.93,58.44289853]
[1752844221832,1e-08,179.94,179.93,49.57817253]
[1752844222023,1e-08,179.94,179.93,58.44289853]
[1752844222613,1e-08,179.94,179.93,49.57817253]
[1752844223032,1e-08,179.94,179.93,58.44289853]
[1752844223737,0.06,179.95,179.94,16.96550796]
[1752844223928,0.06,179.95,179.94,26.53023396]
[1752844224310,0.06,179.95,179.94,22.52291598]
[1752844224608,0.06,179.95,179.94,31.38764198]
[1752844225932,0.06,179.95,179.94,32.08764198]
[1752844226831,0.06,179.95,179.94,31.90681799]
[1752844228949,0.06,179.95,179.94,31.20681799]
[1752844229831,0.06,179.95,179.94,31.90681799]
[1752844230030,0.06,179.95,179.94,31.20681799]
[1752844230555,0.69,179.97,179.95,0.120814]
[1752844230720,0.1,179.99,179.95,8.98554]
[1752844230914,8.864726,179.98,179.95,0.120814]
[1752844231113,0.69,179.97,179.95,0.120814]
[1752844231340,8.864726,179.96,179.95,0.120814]
[1752844231514,9.554726,179.96,179.95,0.120814]
[1752844232131,6.24679039,179.96,179.95,0.120814]
[1752844232335,15.11151639,179.96,179.95,0.120814]
[1752844232746,15.11151639,179.96,179.86,0.03]
[1752844232747,8.864726,179.91,179.86,8.894726]
[1752844233046,32.05,179.9,179.86,8.894726]
[1752844233243,32.05,179.9,179.87,8.864726]
[1752844233244,0.69,179.89,179.87,8.864726]
[1752844233431,0.69,179.89,179.86,5.58979994]
[1752844233629,0.69,179.88,179.86,5.58979994]
[1752844233827,31.36,179.9,179.86,0.03]
[1752844234025,0.69,179.87,179.86,8.894726]
[1752844234245,0.69,179.87,179.86,0.03]
[1752844234657,8.864726,179.89,179.86,5.5898799]
[1752844234658,0.69,179.89,179.86,5.5898799]
[1752844234857,31.46,179.88,179.86,5.5898799]
[1752844235220,32.15,179.88,179.86,0.03]
[1752844235642,32.15,179.88,179.86,8.894726]
[1752844236142,31.46,179.88,179.86,0.03]
[1752844236345,0.69,179.87,179.86,0.03]
[1752844236728,32.19,179.87,179.86,0.03]
[1752844237129,41.054726,179.87,179.86,0.03]
[1752844237349,32.19,179.87,179.86,0.03]
[1752844237733,32.27,179.87,179.86,0.03]
[1752844239435,41.134726,179.87,179.86,0.03]
[1752844240155,32.27,179.87,179.86,0.03]
[1752844240357,0.69,179.87,179.86,0.03]
[1752844240528,41.174726,179.87,179.86,0.03]
[1752844240724,32.31,179.87,179.86,0.03]
[1752844241346,0.69,179.87,179.86,0.03]
[1752844241563,31.6,179.87,179.86,0.03]
[1752844241856,32.29,179.87,179.86,0.03]
[1752844242035,0.69,179.87,179.86,0.03]
[1752844242237,32.27,179.87,179.86,0.03]
[1752844243062,8.25,179.94,179.86,9.594726]
[1752844243063,0.69,179.93,179.86,9.594726]
[1752844243236,0.69,179.93,179.91,8.864726]
[1752844243437,31.62,179.92,179.91,8.864726]
[1752844243740,32.31,179.92,179.9,8.864726]
[1752844244126,0.69,179.91,179.9,8.864726]
[1752844244346,31.62,179.92,179.9,8.864726]
[1752844244556,31.62,179.92,179.91,8.864726]
[1752844244754,31.62,179.92,179.9,0.7]
[1752844244964,31.62,179.92,179.91,8.864726]
[1752844245560,32.31,179.94,179.91,8.864726]
[1752844245747,32.31,179.94,179.9,0.7]
[1752844245949,32.31,179.94,179.91,8.864726]
[1752844246247,0.69,179.93,179.91,8.864726]
[1752844246458,0.69,179.93,179.91,14.42297781]
[1752844246658,31.62,179.94,179.92,8.864726]
[1752844246840,31.6,179.94,179.93,8.864726]
[1752844247662,32.27,179.94,179.91,5.55825181]
[1752844247844,32.27,179.94,179.92,8.864726]
[1752844248244,32.27,179.94,179.91,5.55825181]
[1752844248443,32.27,179.94,179.92,8.864726]
[1752844248852,31.58,179.94,179.93,8.864726]
[1752844249171,31.58,179.94,179.91,5.55825181]
[1752844249842,32.54,179.95,179.91,6.25825181]
[1752844250043,33.23,179.95,179.93,8.864726]
[1752844250255,1.0,179.95,179.94,8.864726]
[1752844250441,1.0,179.95,179.94,9.564726]
[1752844250645,1.0,179.95,179.94,15.12213402]
[1752844251056,1.0,179.95,179.94,31.90681799]
[1752844251457,0.1,179.99,179.97,26.0]
[1752844251667,0.1,179.99,179.98,25.64940997]
[1752844251965,1e-08,179.99,179.98,41.80055326]
[1752844252167,0.1,180.09,180.02,42.78468397]
[1752844252341,0.1,180.09,180.08,8.864726]
[1752844252848,0.1,180.09,180.08,14.41781351]
[1752844253047,0.1,180.09,180.08,20.37576617]
[1752844255063,0.1,180.09,180.08,63.16045014]
[1752844255445,0.1,180.09,180.08,95.23575889]
[1752844255855,0.1,180.15,180.08,95.23575889]
[1752844255856,0.1,180.15,180.12,42.78468397]
[1752844256059,0.1,180.15,180.14,30.90736263]
[1752844256462,0.1,180.15,180.14,31.58736263]
[1752844256658,0.1,180.15,180.14,37.13860055]
[1752844256855,0.7,180.25,180.18,16.78468397]
[1752844257051,0.7,180.25,180.24,14.12267866]
[1752844257255,0.7,180.27,180.24,14.12267866]
[1752844257471,0.7,180.27,180.19,1.23496975]
[1752844257472,0.7,180.26,180.25,14.12267866]
[1752844258351,0.7,180.26,180.24,14.12267866]
[1752844258572,0.7,180.25,180.24,14.12267866]
[1752844258949,0.7,180.28,180.24,14.12267866]
[1752844259149,0.7,180.28,180.22,17.46468397]
[1752844259350,0.7,180.28,180.27,14.12267866]
[1752844259546,0.7,180.28,180.22,17.46468397]
[1752844259752,0.7,180.28,180.26,14.12267866]
[1752844259985,0.7,180.28,180.27,14.12267866]
[1752844260358,0.7,180.3,180.24,16.78468397]
[1752844260664,14.82267866,180.3,180.23,16.78468397]
[1752844260851,5.54571653,180.32,180.18,0.55500055]
[1752844260852,14.12267866,180.28,180.18,1.23500055]
[1752844261052,32.14,180.27,180.17,22.88668397]
[1752844261372,0.7,180.26,180.22,14.12267866]
[1752844261572,0.7,180.25,180.23,14.12267866]
[1752844261777,32.14,180.28,180.2,0.68]
[1752844261964,5.5472347,180.27,180.2,0.68]
[1752844262164,6.2472347,180.27,180.23,14.12267866]
[1752844262366,0.7,180.26,180.23,14.12267866]
[1752844262563,0.7,180.26,180.18,22.33468952]
[1752844262877,0.7,180.26,180.22,14.12267866]
[1752844263086,31.44,180.28,180.25,14.12267866]
[1752844263087,31.42,180.28,180.25,14.12267866]
[1752844263289,0.7,180.27,180.2,16.78468397]
[1752844263453,0.7,180.27,180.24,14.12267866]
[1752844263652,26.0,180.3,180.26,14.12267866]
[1752844263653,0.7,180.3,180.26,14.12267866]
[1752844263877,0.7,180.3,180.28,14.12267866]
[1752844264294,5.54599293,180.32,180.24,0.68]
[1752844264489,51.08867159,180.32,180.27,14.12267866]
[1752844264669,0.7,180.31,180.27,14.12267866]
[1752844264870,31.42,180.32,180.3,14.12267866]
[1752844265188,0.7,180.34,180.27,0.68]
[1752844265381,0.7,180.36,180.33,14.12267866]
[1752844265585,5.54323725,180.4,180.35,14.12267866]
[1752844265889,32.16,180.39,180.31,0.68]
[1752844266083,37.70372981,180.39,180.36,14.12267866]
[1752844266279,0.7,180.38,180.36,14.12267866]
[1752844266785,37.00372981,180.39,180.31,6.22599959]
[1752844266786,0.7,180.37,180.31,6.22599959]
[1752844266996,0.7,180.37,180.36,14.12267866]
[1752844267571,37.00372981,180.39,180.36,14.12267866]
[1752844267780,6.24329354,180.4,180.38,14.12267866]
[1752844267975,0.7,180.39,180.37,14.12267866]
[1752844268175,0.7,180.4,180.33,26.68]
[1752844268488,14.12267866,180.43,180.34,26.68]
[1752844268676,0.7,180.42,180.39,14.12267866]
[1752844268990,32.12,180.44,180.4,14.12267866]
[1752844269577,0.7,180.43,180.37,0.68]
[1752844269976,0.7,180.43,180.35,17.46468397]
[1752844270175,0.7,180.44,180.42,14.12267866]
[1752844270393,0.1,180.51,180.4,14.12267866]
[1752844270394,0.7,180.43,180.4,14.12267866]
[1752844270576,0.7,180.42,180.39,14.12267866]
[1752844270774,0.7,180.42,180.34,45.2620757]
[1752844270775,0.7,180.42,180.34,0.68]
[1752844271086,0.7,180.42,180.33,32.5143]
[1752844271284,0.7,180.42,180.36,14.12267866]
[1752844271498,14.12267866,180.38,180.32,0.68]
[1752844271681,26.7,180.42,180.32,14.12267866]
[1752844271682,14.82267866,180.37,180.32,14.12267866]
[1752844271890,14.12267866,180.35,180.31,14.12267866]
[1752844272206,5.54433895,180.37,180.33,14.12267866]
[1752844272371,0.7,180.37,180.34,14.12267866]
[1752844272574,31.56,180.39,180.36,14.12267866]
[1752844272793,0.7,180.39,180.34,0.68]
[1752844272987,14.12267866,180.36,180.29,38.0608906]
[1752844273190,0.7,180.36,180.32,14.12267866]
[1752844273493,0.7,180.36,180.3,0.68]
[1752844273680,0.7,180.36,180.33,14.12267866]
[1752844273994,0.7,180.36,180.29,38.0608906]
[1752844273995,0.7,180.35,180.29,38.0608906]
[1752844274170,14.82267866,180.35,180.29,5.5465906]
[1752844274370,0.7,180.34,180.3,14.12267866]
[1752844274573,0.7,180.33,180.3,14.12267866]
[1752844275075,0.7,180.33,180.28,5.546927]
[1752844275288,0.7,180.33,180.3,14.12267866]
[1752844275597,0.7,180.33,180.27,31.54717155]
[1752844276585,20.36749105,180.35,180.27,32.22717155]
[1752844276791,20.36749105,180.35,180.3,14.12267866]
[1752844277188,14.82267866,180.34,180.3,14.12267866]
[1752844277501,0.7,180.37,180.32,14.12267866]
[1752844277696,0.7,180.36,180.3,0.68]
[1752844277890,14.82267866,180.36,180.3,0.68]
[1752844278082,14.82267866,180.36,180.31,14.12267866]
[1752844278289,14.12267866,180.33,180.27,32.22715628]
[1752844278484,14.82267866,180.34,180.27,32.22715628]
[1752844278696,0.7,180.34,180.27,32.22715628]
[1752844278885,14.12267866,180.32,180.25,22.83468397]
[1752844279381,0.7,180.31,180.27,14.12267866]
[1752844279700,0.7,180.3,180.25,14.12267866]
[1752844279895,0.7,180.29,180.24,6.22814203]
[1752844280407,19.66879531,180.31,180.24,6.22814203]
[1752844280408,14.12267866,180.3,180.25,14.12267866]
[1752844280697,0.7,180.31,180.26,14.12267866]
[1752844280876,14.82267866,180.31,180.26,14.12267866]
[1752844281074,5.60543852,180.33,180.27,0.68]
[1752844281279,14.12267866,180.32,180.27,14.80267866]
[1752844281494,14.12267866,180.31,180.26,19.6701533]
[1752844281699,14.82267866,180.31,180.26,14.12267866]
[1752844281875,14.12267866,180.29,180.24,14.12267866]
[1752844282080,0.7,180.3,180.23,6.22832516]
[1752844282386,0.7,180.3,180.25,14.12267866]
[1752844282583,37.20543852,180.33,180.23,6.22832516]
[1752844282584,37.90543852,180.33,180.26,14.12267866]
[1752844282811,14.12267866,180.31,180.26,14.80267866]
[1752844282974,37.90543852,180.33,180.26,14.80267866]
[1752844283181,14.12267866,180.31,180.26,14.80267866]
[1752844283383,14.12267866,180.32,180.27,14.12267866]
[1752844283908,0.72,180.31,180.27,14.12267866]
[1752844284204,14.84267866,180.31,180.26,14.80267866]
[1752844284404,0.72,180.3,180.26,14.12267866]
[1752844284784,0.72,180.3,180.27,14.12267866]
[1752844284978,0.72,180.3,180.26,14.12267866]
[1752844285178,0.72,180.3,180.25,5.54784105]
[1752844285387,14.84267866,180.29,180.22,28.2726]
[1752844285599,0.72,180.29,180.25,14.12267866]
[1752844285795,0.72,180.28,180.25,14.12267866]
[1752844286191,14.12267866,180.3,180.25,14.12267866]
[1752844286192,14.84267866,180.3,180.25,14.12267866]
[1752844286393,0.72,180.29,180.25,14.12267866]
[1752844286986,6.26672241,180.29,180.25,14.12267866]
[1752844287198,20.38940107,180.29,180.25,14.12267866]
[1752844287392,20.38940107,180.29,180.23,0.67]
[1752844287601,20.38940107,180.29,180.21,6.1549]
[1752844287602,14.12267866,180.27,180.21,6.1549]
[1752844287908,14.12267866,180.26,180.18,31.54]
[1752844288205,14.12267866,180.26,180.19,14.12267866]
[1752844288206,14.12267866,180.23,180.19,14.12267866]
[1752844288403,0.72,180.23,180.19,14.12267866]
[1752844288614,0.72,180.23,180.2,14.12267866]
[1752844288781,0.72,180.23,180.18,6.21999766]
[1752844288987,0.72,180.23,180.2,14.12267866]
[1752844289198,20.39059353,180.25,180.2,14.12267866]
[1752844289415,0.72,180.24,180.2,14.12267866]
[1752844289598,0.72,180.23,180.17,6.22024715]
[1752844289913,6.5689,180.3,180.21,14.12267866]
[1752844290093,6.5689,180.3,180.21,0.67]
[1752844290094,14.84267866,180.28,180.21,0.67]
[1752844290408,5.54735516,180.27,180.21,0.67]
[1752844290592,5.54735516,180.27,180.22,14.12267866]
[1752844290593,0.72,180.26,180.22,14.12267866]
[1752844290794,0.72,180.25,180.2,5.54916549]
[1752844291110,0.72,180.25,180.21,14.12267866]
[1752844291296,14.84267866,180.24,180.2,14.12267866]
[1752844291496,0.72,180.23,180.2,14.12267866]
[1752844291697,14.12267866,180.24,180.19,5.54962965]
[1752844291915,14.84267866,180.25,180.2,14.12267866]
[1752844292097,0.72,180.25,180.21,14.12267866]
[1752844292483,6.26786896,180.25,180.16,6.0095]
[1752844292690,6.26786896,180.25,180.18,14.12267866]
[1752844292691,14.12267866,180.23,180.18,14.12267866]
[1752844292890,0.72,180.22,180.16,11.56004235]
[1752844293090,14.84267866,180.22,180.17,14.12267866]
[1752844293299,0.72,180.21,180.17,14.12267866]
[1752844293506,0.72,180.21,180.15,32.25086235]
[1752844293709,14.84267866,180.21,180.17,14.12267866]
[1752844294010,0.72,180.2,180.15,6.25086235]
[1752844294207,0.72,180.19,180.15,0.03]
[1752844294413,14.84267866,180.19,180.15,5.58087735]
[1752844294712,0.72,180.22,180.16,0.67]
[1752844295006,14.12267866,180.21,180.16,14.12267866]
[1752844295204,32.34,180.22,180.15,0.03]
[1752844295205,14.84267866,180.2,180.15,0.03]
[1752844295407,14.84267866,180.2,180.15,14.15267866]
[1752844295587,0.72,180.19,180.15,0.03]
[1752844295788,0.72,180.19,180.15,14.15267866]
[1752844296710,0.72,180.18,180.15,14.15267866]
[1752844297588,6.26949791,180.2,180.15,14.15267866]
[1752844297809,0.72,180.19,180.15,14.15267866]
[1752844298319,0.72,180.19,180.15,19.70350806]
[1752844298695,31.54,180.2,180.17,14.12267866]